fUSD/lending_fUSD_20260118
["ID","MTS","AMOUNT","RATE_DAILY","PERIOD"]
[402547897,1768704688561,-518.66,0.0001726,2]
[402547898,1768704688570,-500.0,0.0001726,2]
[402547899,1768704688580,-500.0,0.0001726,2]
[402547900,1768704688589,-179.785737,0.0001726,2]
[402547901,1768704688599,-1252.21,0.0001726,2]
[402547902,1768704688608,-500.0,0.0001726,2]
[402547903,1768704688618,-500.0,0.0001726,2]
[402547904,1768704688627,-500.0,0.0001726,2]
[402547905,1768704688637,-500.0,0.0001726,2]
[402547906,1768704688646,-675.32,0.0001726,2]
[402547907,1768704688656,-453.443589,0.0001726,2]
[402547908,1768704688666,-347.89617,0.0001726,2]
[402547909,1768704688675,-500.0,0.0001726,2]
[402547910,1768704688687,-819.57,0.0001726,2]
[402547911,1768704688698,-453.443589,0.0001726,2]
[402547912,1768704688707,-347.89617,0.0001726,2]
[402547913,1768704688717,-1154.314108,0.0001726,2]
[402547914,1768704688726,-453.443589,0.0001726,2]
[402547915,1768704688737,-347.89617,0.0001726,2]
[402547916,1768704688746,-500.0,0.0001726,2]
[402547917,1768704688756,-1154.314108,0.0001726,2]
[402547918,1768704688768,-453.443588,0.0001726,2]
[402547919,1768704688778,-347.896169,0.0001726,2]
[402547920,1768704688787,-494.44243367,0.0001726,2]
[402547921,1768704688797,-1154.314108,0.0001726,2]
[402547922,1768704688807,-326.97815508,0.0001726,2]
[402547923,1768704688816,-500.0,0.0001726,2]
[402547924,1768704688826,-151.0,0.0001726,2]
[402547925,1768704688836,-1154.314115,0.0001726,2]
[402547926,1768704688846,-905.68,0.0001726,2]
[402547927,1768704688856,-672.64,0.0001726,2]
[402547928,1768704688865,-392.59642671,0.0001726,2]
[402547929,1768704688875,-500.0,0.0001726,2]
[402547930,1768704688885,-500.0,0.0001726,2]
[402547931,1768704688895,-500.0,0.0001726,2]
[402547932,1768704688904,-500.0,0.0001726,2]
[402547933,1768704688914,-500.0,0.0001726,2]
[402547934,1768704688924,-285.225558,0.0001726,2]
[402547935,1768704688933,-500.0,0.0001726,2]
[402547936,1768704688943,-285.225558,0.0001726,2]
[402547937,1768704688953,-679.24,0.0001726,2]
[402547938,1768704688963,-500.0,0.0001726,2]
[402547939,1768704688972,-285.225558,0.0001726,2]
[402547940,1768704688982,-500.0,0.0001726,2]
[402547941,1768704688991,-285.225555,0.0001726,2]
[402547942,1768704689001,-500.0,0.0001726,2]
[402547943,1768704689194,-2095.870807,0.0001726,2]
[402547944,1768704689210,-500.0,0.0001726,2]
[402547945,1768704689220,-500.0,0.0001726,2]
[402547946,1768704689229,-500.0,0.0001726,2]
[402547947,1768704689238,-2095.870807,0.0001726,2]
[402547948,1768704689249,-500.0,0.0001726,2]
[402547949,1768704689259,-500.0,0.0001726,2]
[402547950,1768704689270,-2095.870807,0.0001726,2]
[402547951,1768704689279,-510.71535244,0.0001726,2]
[402547952,1768704689288,-2095.870806,0.0001726,2]
[402547953,1768704689297,-151.0,0.0001726,2]
[402547954,1768704689306,-500.0,0.0001726,2]
[402547955,1768704689316,-151.0,0.0001726,2]
[402547956,1768704689325,-784.15,0.0001726,2]
[402547957,1768704689335,-500.0,0.0001726,2]
[402547958,1768704689344,-500.0,0.0001726,2]
[402547959,1768704689354,-151.0,0.0001726,2]
[402547960,1768704689363,-759.857107,0.0001726,2]
[402547961,1768704689373,-759.857107,0.0001726,2]
[402547962,1768704689382,-578.46993649,0.0001726,2]
[402547963,1768704689392,-664.764017,0.0001726,2]
[402547964,1768704689401,-759.857107,0.0001726,2]
[402547965,1768704689410,-500.0,0.0001726,2]
[402547966,1768704689420,-664.764017,0.0001726,2]
[402547967,1768704689429,-759.857101,0.0001726,2]
[402547968,1768704689438,-500.0,0.0001726,2]
[402547969,1768704689448,-664.764017,0.0001726,2]
[402547970,1768704689457,-664.764024,0.0001726,2]
[402547971,1768704689466,-1088.99,0.0001726,2]
[402547972,1768704689476,-500.0,0.0001726,2]
[402547973,1768704689487,-873.83,0.0001726,2]
[402547974,1768704689496,-500.0,0.0001726,2]
[402547975,1768704689507,-500.0,0.0001726,2]
[402547976,1768704689517,-500.0,0.0001726,2]
[402547977,1768704689526,-500.0,0.0001726,2]
[402547978,1768704689536,-1374.153755,0.0001726,2]
[402547979,1768704689546,-151.0,0.0001726,2]
[402547980,1768704689556,-500.0,0.0001726,2]
[402547981,1768704689568,-500.0,0.0001726,2]
[402547982,1768704689577,-500.0,0.0001726,2]
[402547983,1768704689588,-151.0,0.0001726,2]
[402547984,1768704689598,-1374.153755,0.0001726,2]
[402547985,1768704689607,-1374.153755,0.0001726,2]
[402547986,1768704689616,-500.0,0.0001726,2]
[402547987,1768704689626,-850.44348,0.0001726,2]
[402547988,1768704689636,-1374.153758,0.0001726,2]
[402547989,1768704689646,-850.44348,0.0001726,2]
[402547990,1768704689655,-849.28,0.0001726,2]
[402547991,1768704689665,-308.51933333,0.0001726,2]
[402547992,1768704689674,-850.44348,0.0001726,2]
[402547993,1768704689683,-243.04163334,0.0001726,2]
[402547994,1768704689697,-554.17,0.0001726,2]
[402547995,1768704689706,-850.443484,0.0001726,2]
[402547996,1768704689715,-500.0,0.0001726,2]
[402547997,1768704689724,-500.0,0.0001726,2]
[402547998,1768704689734,-423.863591,0.0001726,2]
[402547999,1768704689744,-656.33,0.0001726,2]
[402548000,1768704689753,-257.183524,0.0001726,2]
[402548001,1768704689764,-500.0,0.0001726,2]
[402548002,1768704689773,-423.863591,0.0001726,2]
[402548003,1768704689783,-257.183524,0.0001726,2]
[402548004,1768704689792,-423.863591,0.0001726,2]
[402548005,1768704689801,-257.183524,0.0001726,2]
[402548006,1768704689810,-828.81,0.0001726,2]
[402548007,1768704689820,-423.863585,0.0001726,2]
[402548008,1768704689830,-1041.03,0.0001726,2]
[402548009,1768704689839,-257.183523,0.0001726,2]
[402548010,1768704689848,-500.0,0.0001726,2]
[402548011,1768704689858,-652.83,0.0001726,2]
[402548012,1768704689867,-151.0,0.0001726,2]
[402548013,1768704689877,-704.21,0.0001726,2]
[402548014,1768704689887,-530.41784971,0.0001726,2]
[402548015,1768704689897,-593.79,0.0001726,2]
[402548016,1768704689907,-151.0,0.0001726,2]
[402548017,1768704689916,-1293.52,0.0001726,2]
[402548018,1768704689926,-284.412342,0.0001726,2]
[402548019,1768704689936,-211.15885,0.0001726,2]
[402548020,1768704689946,-500.0,0.0001726,2]
[402548021,1768704689956,-284.412342,0.0001726,2]
[402548022,1768704689965,-747.18,0.0001726,2]
[402548023,1768704689975,-500.0,0.0001726,2]
[402548024,1768704689985,-284.412342,0.0001726,2]
[402548025,1768704689995,-500.0,0.0001726,2]
[402548026,1768704690005,-500.0,0.0001726,2]
[402548027,1768704690016,-284.412349,0.0001726,2]
[402548028,1768704690025,-514.03,0.0001726,2]
[402548029,1768704690034,-642.56,0.0001726,2]
[402548030,1768704690045,-706.13,0.0001726,2]
[402548031,1768704690055,-500.0,0.0001726,2]
[402548032,1768704690066,-567.23,0.0001726,2]
[402548033,1768704690076,-500.0,0.0001726,2]
[402548034,1768704690086,-622.09,0.0001726,2]
[402548035,1768704690095,-500.0,0.0001726,2]
[402548036,1768704690105,-500.0,0.0001726,2]
[402548037,1768704690115,-526.47,0.0001726,2]
[402548038,1768704690126,-500.0,0.0001726,2]
[402548039,1768704690136,-500.0,0.0001726,2]
[402548040,1768704690146,-500.0,0.0001726,2]
[402548041,1768704690155,-769.53,0.0001726,2]
[402548042,1768704690164,-500.0,0.0001726,2]
[402548043,1768704690173,-500.0,0.0001726,2]
[402548044,1768704690183,-500.0,0.0001726,2]
[402548045,1768704690192,-500.0,0.0001726,2]
[402548046,1768704690201,-500.0,0.0001726,2]
[402548047,1768704690211,-614.22,0.0001726,2]
[402548048,1768704690221,-500.0,0.0001726,2]
[402548049,1768704690231,-500.0,0.0001726,2]
[402548050,1768704690241,-685.95,0.0001726,2]
[402548051,1768704690252,-500.0,0.0001726,2]
[402548052,1768704690263,-500.0,0.0001726,2]
[402548053,1768704690272,-500.0,0.0001726,2]
[402548054,1768704690281,-500.0,0.0001726,2]
[402548055,1768704690291,-538.24,0.0001726,2]
[402548056,1768704690301,-500.0,0.0001726,2]
[402548057,1768704690311,-518.15,0.0001726,2]
[402548058,1768704690320,-522.43,0.0001726,2]
[402548059,1768704690329,-828.15,0.0001726,2]
[402548060,1768704690339,-583.36,0.0001726,2]
[402548061,1768704690350,-746.7,0.0001726,2]
[402548062,1768704690359,-733.72,0.0001726,2]
[402548063,1768704690369,-932.56,0.0001726,2]
[402548064,1768704690378,-500.0,0.0001726,2]
[402548065,1768704690387,-500.0,0.0001726,2]
[402548066,1768704690397,-500.0,0.0001726,2]
[402548067,1768704690407,-937.7,0.0001726,2]
[402548068,1768704690416,-500.0,0.0001726,2]
[402548069,1768704690425,-500.0,0.0001726,2]
[402548070,1768704690434,-711.37,0.0001726,2]
[402548071,1768704690443,-500.0,0.0001726,2]
[402548072,1768704690453,-566.38,0.0001726,2]
[402548073,1768704690463,-500.0,0.0001726,2]
[402548074,1768704690473,-500.0,0.0001726,2]
[402548075,1768704690482,-500.0,0.0001726,2]
[402548076,1768704690491,-448.17061855,0.0001726,2]
[402548077,1768704690500,-598.62,0.0001726,2]
[402548078,1768704690510,-500.0,0.0001726,2]
[402548079,1768704690520,-636.73,0.0001726,2]
[402548080,1768704690530,-500.0,0.0001726,2]
[402548081,1768704690539,-500.0,0.0001726,2]
[402548082,1768704690549,-500.0,0.0001726,2]
[402548083,1768704690558,-976.47,0.0001726,2]
[402548084,1768704690568,-500.0,0.0001726,2]
[402548085,1768704690577,-500.0,0.0001726,2]
[402548086,1768704690587,-978.58,0.0001726,2]
[402548087,1768704690596,-500.0,0.0001726,2]
[402548088,1768704690606,-500.0,0.0001726,2]
[402548089,1768704690615,-500.0,0.0001726,2]
[402548090,1768704690625,-500.0,0.0001726,2]
[402548091,1768704690634,-500.0,0.0001726,2]
[402548092,1768704690643,-500.0,0.0001726,2]
[402548093,1768704690652,-500.0,0.0001726,2]
[402548094,1768704690662,-500.0,0.0001726,2]
[402548095,1768704690671,-232.11389758,0.0001726,2]
[402548096,1768704690681,-500.0,0.0001726,2]
[402548097,1768704690693,-568.1,0.0001726,2]
[402548098,1768704690702,-500.0,0.0001726,2]
[402548099,1768704690711,-500.0,0.0001726,2]
[402548100,1768704690721,-500.0,0.0001726,2]
[402548101,1768704690731,-500.0,0.0001726,2]
[402548102,1768704690740,-500.0,0.0001726,2]
[402548103,1768704690748,-500.0,0.0001726,2]
[402548104,1768704690759,-503.39,0.0001726,2]
[402548105,1768704690769,-500.0,0.0001726,2]
[402548106,1768704690778,-768.5,0.0001726,2]
[402548107,1768704690787,-500.0,0.0001726,2]
[402548108,1768704690797,-398.66317958,0.0001726,2]
[402548109,1768704690807,-500.0,0.0001726,2]
[402548110,1768704690817,-639.7,0.0001726,2]
[402548111,1768704690827,-500.0,0.0001726,2]
[402548112,1768704690836,-744.82,0.0001726,2]
[402548113,1768704690845,-550.76,0.0001726,2]
[402548114,1768704690855,-500.0,0.0001726,2]
[402548115,1768704690865,-500.0,0.0001726,2]
[402548116,1768704690875,-578.75,0.0001726,2]
[402548117,1768704690884,-500.0,0.0001726,2]
[402548118,1768704690894,-500.0,0.0001726,2]
[402548119,1768704690903,-500.0,0.0001726,2]
[402548120,1768704690913,-500.0,0.0001726,2]
[402548121,1768704690922,-500.0,0.0001726,2]
[402548122,1768704690931,-500.0,0.0001726,2]
[402548123,1768704690941,-500.0,0.0001726,2]
[402548124,1768704690950,-500.0,0.0001726,2]
[402548125,1768704690959,-523.82,0.0001726,2]
[402548126,1768704690969,-500.0,0.0001726,2]
[402548127,1768704690979,-511.36,0.0001726,2]
[402548128,1768704690988,-500.0,0.0001726,2]
[402548129,1768704690997,-500.0,0.0001726,2]
[402548130,1768704691007,-500.0,0.0001726,2]
[402548131,1768704691016,-500.0,0.0001726,2]
[402548132,1768704691026,-500.0,0.0001726,2]
[402548133,1768704691037,-500.0,0.0001726,2]
[402548134,1768704691047,-511.15,0.0001726,2]
[402548135,1768704691057,-500.0,0.0001726,2]
[402548136,1768704691067,-500.0,0.0001726,2]
[402548137,1768704691076,-500.0,0.0001726,2]
[402548138,1768704691085,-500.0,0.0001726,2]
[402548139,1768704691094,-653.96,0.0001726,2]
[402548140,1768704691103,-519.76,0.0001726,2]
[402548141,1768704691112,-500.0,0.0001726,2]
[402548142,1768704691121,-229.2259251,0.0001726,2]
[402548143,1768704691130,-500.0,0.0001726,2]
[402548144,1768704691140,-583.4,0.0001726,2]
[402548145,1768704691150,-500.0,0.0001726,2]
[402548146,1768704691160,-500.0,0.0001726,2]
[402548147,1768704691169,-500.0,0.0001726,2]
[402548148,1768704691179,-984.61,0.0001726,2]
[402548149,1768704691188,-527.66,0.0001726,2]
[402548150,1768704691198,-500.0,0.0001726,2]
[402548151,1768704691207,-500.0,0.0001726,2]
[402548152,1768704691216,-8020.14,0.0001726,2]
[402548153,1768704691225,-500.0,0.0001726,2]
[402548154,1768704691235,-520.18,0.0001726,2]
[402548155,1768704691245,-500.0,0.0001726,2]
[402548156,1768704691255,-811.1,0.0001726,2]
[402548157,1768704691264,-500.0,0.0001726,2]
[402548158,1768704691274,-500.0,0.0001726,2]
[402548159,1768704691283,-500.0,0.0001726,2]
[402548160,1768704691292,-500.0,0.0001726,2]
[402548161,1768704691301,-500.0,0.0001726,2]
[402548162,1768704691311,-1000.0,0.0001726,2]
[402548163,1768704691320,-150.0,0.00017261,2]
[402548164,1768704691329,-151.0,0.00017262,2]
[402548165,1768704691339,-151.0,0.00017262,2]
[402548166,1768704691348,-255.647116,0.00017262,2]
[402548167,1768704691359,-255.647116,0.00017262,2]
[402548168,1768704691368,-255.647116,0.00017262,2]
[402548169,1768704691377,-255.647116,0.00017262,2]
[402548170,1768704691386,-1981.0,0.00017267,2]
[402548171,1768704691395,-166.66,0.00017269,2]
[402548172,1768704691404,-616.49,0.00017272,2]
[402548173,1768704691413,-500.0,0.00017288,2]
[402548174,1768704691767,-187.78971762,0.00017302,2]
[402548175,1768704691796,-1125.3,0.00017314,2]
[402548176,1768704691805,-1000.0,0.00017321,2]
[402548177,1768704691814,-1000.0,0.00017321,2]
[402548178,1768704691823,-1095.09329894,0.00017321,2]
[402548179,1768704691833,-1066.28711988,0.00017321,2]
[402548180,1768704691842,-501.23240537,0.00017321,2]
[402548181,1768704691851,-500.70646371,0.00017321,2]
[402548182,1768704691861,-169.66641013,0.00017321,2]
[402548183,1768704691870,-1000.0,0.00017321,2]
[402548184,1768704691880,-500.40362324,0.00017321,2]
[402548185,1768704691889,-502.02552951,0.00017321,2]
[402548186,1768704691898,-1000.0,0.00017321,2]
[402548187,1768704691908,-291.64486772,0.00017321,2]
[402548188,1768704691917,-1000.0,0.00017321,2]
[402548189,1768704691926,-1000.0,0.00017321,2]
[402548190,1768704691936,-1000.0,0.00017321,2]
[402548191,1768704691945,-500.4545746,0.00017321,2]
[402548192,1768704691956,-1000.0,0.00017321,2]
[402548193,1768704691966,-500.69486564,0.00017321,2]
[402548194,1768704691975,-500.72209705,0.00017321,2]
[402548195,1768704691984,-1000.0,0.00017321,2]
[402548196,1768704691994,-500.67754118,0.00017321,2]
[402548197,1768704692003,-414.92649477,0.00017321,2]
[402548198,1768704692013,-1000.0,0.00017321,2]
[402548199,1768704692022,-500.71110259,0.00017321,2]
[402548200,1768704692032,-1000.0,0.00017321,2]
[402548201,1768704692041,-343.65136961,0.00017321,2]
[402548202,1768704692051,-1000.0,0.00017321,2]
[402548203,1768704692061,-1000.0,0.00017321,2]
[402548204,1768704692071,-491.33634829,0.00017322,2]
[402548205,1768704692081,-1851.0,0.00017327,2]
[402548206,1768704692090,-1000.0,0.00017339,2]
[402548207,1768704692100,-674.493,0.0001734,2]
[402548208,1768704692114,-500.0,0.00017343,2]
[402548209,1768704692123,-150.0,0.00017369,2]
[402548210,1768704692133,-1981.0,0.00017372,2]
[402548211,1768704692142,-19684.80200927,0.00017375,2]
[402548212,1768704692151,-150.0,0.00017379,2]
[402548213,1768704692160,-276.5178236,0.00017393,2]
[402548214,1768704692169,-3032.55770297,0.00017393,2]
[402548215,1768704692179,-2372.8612874,0.00017393,2]
[402548216,1768704692188,-425.03740356,0.00017393,2]
[402548217,1768704692197,-500.0,0.00017397,2]
[402548218,1768704692207,-851.86666608,0.000174,2]
[402548219,1768704692216,-199.66491,0.000174,2]
[402548220,1768704692225,-300.0,0.000174,2]
[402548221,1768704692235,-1125.3,0.00017412,2]
[402548222,1768704692244,-1000.0,0.00017413,2]
[402548223,1768704692254,-1981.0,0.00017425,2]
[402548224,1768704692265,-200.0,0.00017431,2]
[402548225,1768704692274,-642.94,0.00017436,2]
[402548226,1768704692283,-334.5472959,0.00017436,2]
[402548227,1768704692293,-4001.0,0.00017436,2]
[402548228,1768704692303,-9835.42840795,0.00017452,2]
[402548229,1768704692312,-567.89470616,0.00017452,2]
[402548230,1768704692321,-1264.0,0.00017456,2]
[402548231,1768704692331,-151.0,0.00017456,2]
[402548232,1768704692340,-151.0,0.00017456,2]
[402548233,1768704692351,-151.0,0.00017456,2]
[402548234,1768704692361,-151.0,0.00017456,2]
[402548235,1768704692371,-842.0,0.00017456,2]
[402548236,1768704692380,-151.0,0.00017456,2]
[402548237,1768704692390,-151.0,0.00017456,2]
[402548238,1768704692400,-842.0,0.00017456,2]
[402548239,1768704692410,-151.0,0.00017456,2]
[402548240,1768704692419,-842.0,0.00017456,2]
[402548241,1768704692429,-826.29620919,0.00017456,2]
[402548242,1768704692438,-151.0,0.00017456,2]
[402548243,1768704692447,-151.0,0.00017456,2]
[402548244,1768704692457,-151.0,0.00017456,2]
[402548245,1768704692466,-151.0,0.00017456,2]
[402548246,1768704692476,-151.0,0.00017456,2]
[402548247,1768704692485,-151.0,0.00017456,2]
[402548248,1768704692494,-151.0,0.00017456,2]
[402548249,1768704692503,-151.0,0.00017456,2]
[402548250,1768704692512,-151.0,0.00017456,2]
[402548251,1768704692522,-151.0,0.00017456,2]
[402548252,1768704692532,-151.0,0.00017456,2]
[402548253,1768704692542,-151.0,0.00017456,2]
[402548254,1768704692551,-152.0,0.00017456,2]
[402548255,1768704692561,-151.0,0.00017456,2]
[402548256,1768704692571,-152.0,0.00017456,2]
[402548257,1768704692580,-151.0,0.00017456,2]
[402548258,1768704692589,-152.0,0.00017456,2]
[402548259,1768704692598,-151.0,0.00017456,2]
[402548260,1768704692607,-151.0,0.00017456,2]
[402548261,1768704692618,-152.0,0.00017456,2]
[402548262,1768704692627,-151.0,0.00017456,2]
[402548263,1768704692636,-152.0,0.00017456,2]
[402548264,1768704692646,-151.0,0.00017456,2]
[402548265,1768704692655,-151.0,0.00017456,2]
[402548266,1768704692664,-152.0,0.00017456,2]
[402548267,1768704692674,-151.0,0.00017456,2]
[402548268,1768704692683,-152.0,0.00017456,2]
[402548269,1768704692697,-151.0,0.00017456,2]
[402548270,1768704692706,-152.0,0.00017456,2]
[402548271,1768704692716,-151.0,0.00017456,2]
[402548272,1768704692725,-152.0,0.00017456,2]
[402548273,1768704692738,-152.0,0.00017456,2]
[402548274,1768704692748,-151.0,0.00017456,2]
[402548275,1768704692757,-152.0,0.00017456,2]
[402548276,1768704692767,-151.0,0.00017456,2]
[402548277,1768704692777,-152.0,0.00017456,2]
[402548278,1768704692786,-151.0,0.00017456,2]
[402548279,1768704692795,-152.0,0.00017456,2]
[402548280,1768704692805,-192.28780433,0.00017456,2]
[402548281,1768704692814,-152.0,0.00017456,2]
[402548282,1768704692824,-152.0,0.00017456,2]
[402548283,1768704692833,-152.0,0.00017456,2]
[402548284,1768704692842,-152.0,0.00017456,2]
[402548285,1768704692852,-152.0,0.00017456,2]
[402548286,1768704692862,-152.0,0.00017456,2]
[402548287,1768704692871,-152.0,0.00017456,2]
[402548288,1768704692881,-152.0,0.00017456,2]
[402548289,1768704692890,-1981.0,0.00017458,2]
[402548290,1768704692899,-1874.84,0.00017486,2]
[402548291,1768704692909,-19625.08,0.00017491,6]
[402548292,1768704692919,-150.0,0.00017495,2]
[402548293,1768704692929,-2000.0,0.000175,2]
[402548294,1768704692939,-980.0,0.000175,2]
[402548295,1768704692949,-307.0,0.000175,2]
[402548296,1768704692958,-853.0,0.000175,2]
[402548297,1768704692967,-1100.0,0.000175,6]
[402548298,1768704692977,-260.0787234,0.00017507,2]
[402548299,1768704692987,-17724.84080165,0.00017508,2]
[402548300,1768704692997,-1125.3,0.0001751,2]
[402548301,1768704693007,-559.56,0.0001752,2]
[402548302,1768704693017,-1601.85311095,0.00017533,2]
[402548303,1768704693028,-979.80974503,0.00017534,2]
[402548304,1768704693038,-500.0,0.00017534,2]
[402548305,1768704693048,-524.58,0.00017534,2]
[402548306,1768704693058,-660.78,0.00017534,2]
[402548307,1768704693068,-500.0,0.00017534,2]
[402548308,1768704693078,-500.0,0.00017534,2]
[402548309,1768704693087,-500.0,0.00017534,2]
[402548310,1768704693097,-500.0,0.00017534,2]
[402548311,1768704693106,-500.0,0.00017534,2]
[402548312,1768704693116,-599.82,0.00017534,2]
[402548313,1768704693126,-500.0,0.00017534,2]
[402548314,1768704693136,-500.0,0.00017534,2]
[402548315,1768704693145,-500.0,0.00017534,2]
[402548316,1768704693154,-151.0,0.00017534,2]
[402548317,1768704693164,-500.0,0.00017534,2]
[402548318,1768704693173,-719.96,0.00017534,2]
[402548319,1768704693182,-853.29,0.00017534,2]
[402548320,1768704693192,-151.0,0.00017534,2]
[402548321,1768704693202,-500.0,0.00017534,2]
[402548322,1768704693211,-151.0,0.00017534,2]
[402548323,1768704693221,-151.0,0.00017534,2]
[402548324,1768704693231,-500.0,0.00017534,2]
[402548325,1768704693240,-554.1,0.00017534,2]
[402548326,1768704693250,-151.0,0.00017534,2]
[402548327,1768704693260,-500.0,0.00017534,2]
[402548328,1768704693269,-432.84371037,0.00017534,2]
[402548329,1768704693279,-500.0,0.00017534,2]
[402548330,1768704693288,-508.49,0.00017534,2]
[402548331,1768704693297,-500.0,0.00017534,2]
[402548332,1768704693307,-292.200681,0.00017534,2]
[402548333,1768704693317,-506.56,0.00017534,2]
[402548334,1768704693327,-151.0,0.00017534,2]
[402548335,1768704693336,-221.934971,0.00017534,2]
[402548336,1768704693345,-168.486627,0.00017534,2]
[402548337,1768704693355,-500.0,0.00017534,2]
[402548338,1768704693364,-168.486627,0.00017534,2]
[402548339,1768704693374,-663.4,0.00017534,2]
[402548340,1768704693384,-168.486627,0.00017534,2]
[402548341,1768704693393,-168.486634,0.00017534,2]
[402548342,1768704693402,-500.0,0.00017534,2]
[402548343,1768704693411,-767.04,0.00017534,2]
[402548344,1768704693421,-500.0,0.00017534,2]
[402548345,1768704693431,-500.0,0.00017534,2]
[402548346,1768704693440,-500.0,0.00017534,2]
[402548347,1768704693449,-591.99,0.00017534,2]
[402548348,1768704693459,-500.0,0.00017534,2]
[402548349,1768704693469,-340.38424327,0.00017534,2]
[402548350,1768704693478,-1071.78,0.00017534,2]
[402548351,1768704693487,-500.0,0.00017534,2]
[402548352,1768704693496,-500.0,0.00017534,2]
[402548353,1768704693506,-500.0,0.00017534,2]
[402548354,1768704693515,-500.0,0.00017534,2]
[402548355,1768704693524,-500.0,0.00017534,2]
[402548356,1768704693534,-500.0,0.00017534,2]
[402548357,1768704693543,-500.0,0.00017534,2]
[402548358,1768704693553,-500.0,0.00017534,2]
[402548359,1768704693562,-482.79,0.00017534,2]
[402548360,1768704693571,-587.25,0.00017534,2]
[402548361,1768704693581,-502.19,0.00017534,2]
[402548362,1768704693590,-500.0,0.00017534,2]
[402548363,1768704693600,-500.0,0.00017534,2]
[402548364,1768704693609,-500.0,0.00017534,2]
[402548365,1768704693618,-500.0,0.00017534,2]
[402548366,1768704693628,-500.13,0.00017534,2]
[402548367,1768704693637,-500.0,0.00017534,2]
[402548368,1768704693646,-852.56,0.00017534,2]
[402548369,1768704693655,-500.0,0.00017534,2]
[402548370,1768704693665,-508.27458007,0.00017534,2]
[402548371,1768704693674,-500.0,0.00017534,2]
[402548372,1768704693684,-1145.6,0.00017534,2]
[402548373,1768704693695,-599.9930307,0.00017534,2]
[402548374,1768704693704,-934.87,0.00017534,2]
[402548375,1768704693713,-500.58,0.00017534,2]
[402548376,1768704693723,-570.09,0.00017534,2]
[402548377,1768704693733,-649.19867831,0.00017534,2]
[402548378,1768704693742,-500.0,0.00017534,2]
[402548379,1768704693752,-500.0,0.00017534,2]
[402548380,1768704693761,-500.0,0.00017534,2]
[402548381,1768704693770,-500.0,0.00017534,2]
[402548382,1768704693779,-500.0,0.00017534,2]
[402548383,1768704693789,-500.0,0.00017534,2]
[402548384,1768704693798,-500.0,0.00017534,2]
[402548385,1768704693807,-500.0,0.00017534,2]
[402548386,1768704693816,-500.0,0.00017534,2]
[402548387,1768704693825,-500.0,0.00017534,2]
[402548388,1768704693834,-500.0,0.00017534,2]
[402548389,1768704693843,-500.0,0.00017534,2]
[402548390,1768704693852,-500.0,0.00017534,2]
[402548391,1768704693862,-206.72467647,0.00017534,2]
[402548392,1768704693871,-667.58,0.00017534,2]
[402548393,1768704693881,-500.0,0.00017534,2]
[402548394,1768704693890,-500.0,0.00017534,2]
[402548395,1768704693900,-500.0,0.00017534,2]
[402548396,1768704693909,-511.46,0.00017534,2]